Cogmind - Beta 16.1 @@@ ROGUE MODE // 2026.02.17 @ 02:30:41 Player: ZeroJewelz Result: Destroyed by GF-YMG(R) with Subdweller Machine Gun Performance ------------- Evolutions (0) 0 Regions Visited (2) 400 Robots Destroyed (8) 40 Value Destroyed (321) 321 Prototype IDs (0) 0 Alien Tech Used (0) 0 Bonus (0) 0 TOTAL SCORE: 761 Bonus ------- None Cogmind --------- Core Integrity 0/250 Matter 234/300 Energy 48/100 System Corruption 0% Temperature Cool (0) Movement Core (200) Ox3 Location -10/Subcaves Parts ------- > --- POWER (1) -------- (None) > --- PROPULSION (2) --- (None) > --- UTILITY (2) ------ Small Storage Unit Structural Scanner > --- WEAPON (2) ------- Medium Laser Medium Laser > --- INVENTORY (8) ---- Improved Heat Sink ECM Suite Light Assault Rifle Peak State ------------ > --- POWER ------------ Ion Engine > --- PROPULSION ------- Light Treads Light Treads > --- UTILITY ---------- Small Storage Unit ECM Suite > --- WEAPON ----------- Medium Laser Assault Rifle > --- INVENTORY -------- Ion Engine Light Treads Improved Heat Sink Structural Scanner Medium Laser Beam Cannon Light Assault Rifle Scrap Shield Fragment [Rating: 8] Favorites ----------- Power Ion Engine Engine Ion Engine Propulsion Light Treads Treads Light Treads Utility ECM Suite Device ECM Suite Storage Small Storage Unit Weapon Medium Laser Energy Gun Medium Laser Energy Cannon Beam Cannon Ballistic Gun Assault Rifle Build | -11 -10 -10 ------- Run | Yrd Mat Sub Slots Evolved . | . . . Power . | . . . Propulsion . | . . . Utility . | . . . Weapon . | . . . Parts Attached 15 | 7 2 6 Power 3 | 1 . 2 Engine 3 | 1 . 2 Core . | . . . Reactor . | . . . Propulsion 3 | 2 . 1 Treads 3 | 2 . 1 Leg . | . . . Wheel . | . . . Hover . | . . . Flight . | . . . Utility 3 | 1 2 . Device 2 | . 2 . Storage 1 | 1 . . Processor . | . . . Hackware . | . . . Protection . | . . . Artifact . | . . . Weapon 6 | 3 . 3 Energy Gun 3 | 2 . 1 Energy Cannon 1 | . . 1 Ballistic Gun 2 | 1 . 1 Ballistic Cannon . | . . . Launcher . | . . . Special Weapon . | . . . Impact Weapon . | . . . Slashing Weapon . | . . . Piercing Weapon . | . . . Special Melee Weapon . | . . . Unidentified Prototypes . | . . . Parts Lost 8 | . . 8 Power 3 | . . 3 Propulsion 3 | . . 3 Utility . | . . . Weapon 2 | . . 2 Highest Loss Streak 7 | . . 7 To Critical Strikes 1 | . . 1 Average Backups 4 | . 3 6 Power . | . 1 . Propulsion . | . . . Utility 1 | . 1 2 Weapon 1 | . . 2 Tool/Special . | . . . Unused Backups 3 | . 2 1 Power 1 | . 1 . Propulsion . | . . . Utility 1 | . . 1 Weapon 1 | . 1 . Tool/Special . | . . . Average Slot Usage (%) 97 | . 97 98 Engine 13 | . 14 13 Treads 27 | . 28 26 Device 17 | . 20 14 Storage 9 | . 5 14 Energy Gun 13 | . 14 13 Ballistic Gun 13 | . 14 12 Peak Build Rating 8 | 6 7 8 Average Rating 6 | 5 6 7 On Entrance 4 | . 6 7 Avg Prop Armor Cover (%) . | . . . Naked Turns . | . . . Heaviest Build 16 | 14 16 16 Greatest Support 40 | 40 40 40 Greatest Overweight (x) 4 | . . 4 Average Overweight (x) . | . . . Largest Inventory Capacity 8 | 8 8 8 Average Capacity 7 | 7 6 8 Most Carried 8 | 2 7 8 Average Carried 4 | . 3 6 Final Capacity 8 | 8 8 8 Final Carried 7 | 1 7 3 Class Distribution -------------------- 70% | Mutant 29% | Infiltrator-Mutant Dominant Class ---------------- Infiltrator-Mutant | -10/Materials Mutant | -10/Subcaves Resources | -11 -10 -10 ----------- Run | Yrd Mat Sub Matter Collected 380 | 198 99 83 Remotely . | . . . Salvage Created 298 | . 99 199 Parts 18 | . 6 12 Haulers Intercepted . | . . . Recyclers Shooed . | . . . Parts Field Recycled . | . . . Retrieved Matter . | . . . Parts Self-Destructed 2 | . . 2 Prevented . | . . . Parts Restored . | . . . Kills | -11 -10 -10 ------- Run | Yrd Mat Sub Combat Hostiles Destroyed 8 | . 2 6 Guns 7 | . 2 5 Classes Destroyed 2 | . 1 1 Grunt 2 | . 2 . Subdweller 6 | . . 6 Best Kill Streak 2 | . 2 2 Combat Bots Only 2 | . 2 2 Max Kills in Single Turn 1 | . 1 1 Gunslinging . | . . . Exploded . | . . . Melee . | . . . Uniques/NPCs Destroyed . | . . . Combat | -11 -10 -10 -------- Run | Yrd Mat Sub Hostile Shots Fired 73 | . 5 68 Missed 23 | . 4 19 Hits 50 | . 1 49 Projectile 50 | . 1 49 AOE 4 | . . 4 Critical Strikes 2 | . . 2 Damage Taken 1169 | . 37 1132 Core 257 | . 24 233 Absorbed by Shields . | . . . Core Remaining (%) 100 | 100 . . Volleys Fired 37 | . 4 33 Largest 2 | . 2 2 Hottest 110 | . 70 110 Shots Fired 73 | . 8 65 Gun 61 | . 8 53 Cannon 12 | . . 12 Launcher . | . . . Special . | . . . Kinetic 27 | . 4 23 Thermal 46 | . 4 42 Explosive . | . . . Electromagnetic . | . . . Robot Hit Streak 14 | . 3 14 Robot Miss Streak 2 | . 2 2 Penetration Max . | . . . Secondary Targets . | . . . Shots Hit Robots 56 | . 4 52 Core Hits 16 | . 3 13 Critical Kills . | . . . Critical Parts Destroyed . | . . . Critical Strikes 4 | . . 4 Burn 4 | . . 4 Melee Attacks . | . . . Impact . | . . . Slashing . | . . . Piercing . | . . . Sneak Attacks . | . . . Combat Hostiles . | . . . Follow-up Attacks . | . . . Damage Inflicted 751 | . 52 699 Guns 576 | . 52 524 Cannons 175 | . . 175 Explosions . | . . . Melee . | . . . Ramming . | . . . Kinetic 262 | . 28 234 Thermal 489 | . 24 465 Explosive . | . . . Electromagnetic . | . . . Impact . | . . . Slashing . | . . . Piercing . | . . . Highest Corruption . | . . . Average Corruption . | . . . Corruption Purged . | . . . Corruption Blocked . | . . . Overload Shots . | . . . Overflow Damage . | . . . Projectiles . | . . . Explosions . | . . . Melee . | . . . Knockbacks . | . . . Impact . | . . . Kinetic . | . . . Secondary . | . . . Self-Inflicted Damage . | . . . Shots . | . . . Rammed 2 | 2 . . Targets Rammed 2 | 2 . . Kicked . | . . . Crushed . | . . . Highest Temperature 36 | . 36 2 Average Temperature 16 | . 19 2 Received Heat Transfer 117 | . 9 108 Siege Activations . | . . . Martial Activations . | . . . Shielding Activations . | . . . Robots Disrupted . | . . . Combat Hostiles . | . . . Robots Corrupted . | . . . Combat Hostiles . | . . . Parts Fried . | . . . Impact Corruptions . | . . . Robots Melted 1 | . . 1 Combat Hostiles 1 | . . 1 Parts Melted 2 | . . 2 Heat Transferred 1591 | . 74 1517 Parts Sabotaged . | . . . Parts Stolen . | . . . Parts Stripped . | . . . Power Chain Reactions . | . . . Alert | -11 -10 -10 ------- Run | Yrd Mat Sub Maximum Alert Level . | . . . Low Security (%) 100 | 100 100 . Level 1 . | . . . Level 2 . | . . . Level 3 . | . . . Level 4 . | . . . Level 5 . | . . . High Security . | . . . Max Security . | . . . Peak Influence 50 | . 50 . Initial . | . . . Average 3 | . 4 . Influence Increases 50 | . 50 . Destroy 0b10 Robot/C 40 | . 40 . Destroy Leader 10 | . 10 . Influence Decreases 50 | . 50 . Time Decay 50 | . 50 . Squads Dispatched 1 | . 1 . Investigation . | . . . Extermination . | . . . Reinforcement 1 | . 1 . Assault . | . . . Garrison . | . . . Intercept . | . . . Searches Triggered . | . . . Construction Impeded . | . . . Haulers Reinforced . | . . . Active Scanning Responses . | . . . Cargo Convoy Interrupts . | . . . Stealth | -11 -10 -10 --------- Run | Yrd Mat Sub Distress Signals 2 | . 2 . Communications Jammed . | . . . Distress Signals . | . . . Times Spotted 11 | . 4 7 Peak Tracking Total 3 | . 3 2 Tactical Retreats . | . . . Traps | -11 -10 -10 ------- Run | Yrd Mat Sub Traps Triggered 1 | . 1 . Indirectly . | . . . Trap Hack Attempts . | . . . Triggered . | . . . Disarmed . | . . . Reprogrammed . | . . . Reused . | . . . Traps Extracted . | . . . Installed . | . . . Triggered . | . . . Machines | -11 -10 -10 ---------- Run | Yrd Mat Sub Machines Disabled . | . . . Max in Single Turn . | . . . Machines Repaired . | . . . Machines Dismantled . | . . . Machines Sabotaged . | . . . Overloaded Fab Kills . | . . . Hacking | -11 -10 -10 --------- Run | Yrd Mat Sub Machines Accessed 3 | . 2 1 Terminals 2 | . 2 . Fabricators . | . . . Repair Stations . | . . . Recycling Units . | . . . Scanalyzers . | . . . Garrison Access . | . . . Total Hacks 10 | . 6 4 Successful 8 | . 4 4 Failed 2 | . 2 . Catastrophic . | . . . Database Lockouts . | . . . Manual 1 | . . 1 Terminals 6 | . 6 . Fabricators . | . . . Repair Stations . | . . . Recycling Units . | . . . Scanalyzers . | . . . Garrison Access . | . . . Terminal Hacks 8 | . 4 4 Record 5 | . 1 4 Alert Level 1 | . 1 . Locate Traps 1 | . 1 . Dispatch Records 1 | . 1 . Fabricator Hacks . | . . . Repair Station Hacks . | . . . Recycling Unit Hacks . | . . . Scanalyzer . | . . . Garrison Access Hacks . | . . . Unauthorized Hacks . | . . . Terminals . | . . . Fabricators . | . . . Repair Stations . | . . . Recycling Units . | . . . Scanalyzers . | . . . Garrison Access . | . . . Data Cores Recovered . | . . . Used . | . . . Hacking Detections 1 | . 1 . Full Trace Events . | . . . Feedback Events . | . . . Feedback Blocked . | . . . Robot Schematics Acquired . | . . . Robots Built . | . . . Authchips . | . . . Time . | . . . Total Robot Build Rating . | . . . Part Schematics Acquired . | . . . Parts Built . | . . . Authchips . | . . . Time . | . . . Total Part Build Rating . | . . . Part Studies Acquired . | . . . Parts Repaired . | . . . Time . | . . . Parts Recycled . | . . . Recycled Matter . | . . . Retrieved Matter . | . . . Retrieved Components . | . . . Parts Scanalyzed . | . . . Part Schematics Acquired . | . . . Parts Damaged . | . . . Bothacking | -11 -10 -10 ------------ Run | Yrd Mat Sub Used RIF Installer . | . . . Robots Hacked . | . . . Non-combat . | . . . Combat . | . . . Robot Hacks Applied . | . . . Relay Couplers Released . | . . . Fabnet Peak Effective % . | . . . Robots Rewired . | . . . Allies Hacked . | . . . Hacks Repelled . | . . . Allies | -11 -10 -10 -------- Run | Yrd Mat Sub Total Allies . | . . . Largest Group . | . . . Highest-Rated Group . | . . . Highest-Rated Ally . | . . . Total Orders . | . . . Ally Attacks . | . . . Total Damage . | . . . Kills . | . . . Allies Corrupted . | . . . Allies Melted . | . . . Intel | -11 -10 -10 ------- Run | Yrd Mat Sub Active Infowar (turns) 989 | . 469 520 Structural 515 | . 377 138 ECM 830 | . 448 382 Robot Analysis Total . | . . . Derelict Logs Recovered 1 | . . 1 Drone Launches . | . . . Drone Recoveries . | . . . Exploration | -11 -10 -10 ------------- Run | Yrd Mat Sub Turns Passed 1192 | 111 561 520 Spaces Moved 636 | 58 329 249 Core 4 | 3 . 1 Treads 632 | 55 329 248 Legs . | . . . Wheels . | . . . Hover . | . . . Flight . | . . . Fastest Speed 50 | 50 160 160 Average Speed 159 | 154 160 160 Slowest Speed 250 | 160 160 250 Overloaded Moves . | . . . Propulsion Burnouts . | . . . Robots Hopped . | . . . Potential Cave-ins . | . . . Cave-ins Triggered . | . . . Exploration Rate (%) 33 | 4 72 23 Regions Visited 2 Branch Regions 1 Pre-discovered Areas . | . . . Known Exits Taken . | . . . Unknown Exits Taken 2 | 1 1 . Scrap Searched . | . . . Spaces Dug . | . . . Terrain Destroyed . | . . . Melee . | . . . Projectile . | . . . AOE . | . . . Terrain Rammed . | . . . Walls Destroyed . | . . . Machines Disabled . | . . . Actions | -11 -10 -10 --------- Run | Yrd Mat Sub Total 736 | 78 356 302 Wait 17 | 3 10 4 Move 634 | 57 328 249 Hop . | . . . Pick Up 20 | 8 9 3 Fast Attach . | . . . Attach 12 | 6 1 5 Detach . | . . . Swap 9 | 1 2 6 Drop 5 | 1 2 2 Fire 37 | . 4 33 Melee . | . . . Ram . | . . . Kick . | . . . Crush 2 | 2 . . Escape Stasis . | . . . Rewire . | . . . Trap . | . . . Miscellaneous . | . . . Route ------- -11/Scrapyard -10/Materials (discovered 3 exits: [*Mat x2] / *Sub) -10/Subcaves (discovered 3 exits: *Mat x2 / Rec) History --------- Turn | Location | Event 27 | -11/Scrapyard | Discovered new exit (range 16) 112 | -11/Scrapyard | Entered Materials 113 | -10/Materials | Met a group of wandering Federalists 323 | -10/Materials | Discovered new exit (range 3) 537 | -10/Materials | Build established: Infiltrator-Mutant 603 | -10/Materials | Discovered new exit (range 4) 606 | -10/Materials | Discovered new exit (range 10) 673 | -10/Materials | Entered Subcaves 674 | -10/Subcaves | Approached by a straggling Scientist 758 | -10/Subcaves | Visited Clippyterm 763 | -10/Subcaves | Identified exit to Materials 763 | -10/Subcaves | Identified exit to Recycling 763 | -10/Subcaves | Learned 40 Factory zone layouts 887 | -10/Subcaves | Build established: Mutant 933 | -10/Subcaves | A swath of the cavern ceiling suddenly collapsed 1039 | -10/Subcaves | Core integrity fell below 50% 1168 | -10/Subcaves | Core integrity fell below 20% 1193 | -10/Subcaves | Destroyed by GF-YMG(R) with Subdweller Machine Gun Last Messages --------------- 4O-EE0(R) suffers critical hit (Burn). 24-EO4(c) destroyed. Subatomizers dissect the Sub. Power Source. 4O-EE0(R) suffers critical hit (Burn). 4O-EE0(R) critical meltdown. Sub. Power Source melted. Subatomizers dissect the Sub. Power Source. Acquired Sub. Power Source. Acquired 14 matter. Acquired 20 matter. Acquired 15 matter. Subatomizers dissect the Sub. Beam Cannon. Lgt. Treads destroyed. Assault Rifle destroyed. Sub. Power Source destroyed. Ion Engine destroyed. Critical hit (Destroy). Lgt. Treads destroyed. 12-QH2(R) destroyed. Beam Cannon destroyed. Map ----- +----------------------------------------------------+ | ????????????????????????????###"""## ? ? # ? | | ????????????????????????????# """##?# ? " | | ??????????????????????????### ""##### # # ? | | ????????????????????????### " ### "# " ?? | | ???????????????????????# #?# ##" ?? | | ???????????????????"" ### ##??# ""# ?? | | ??????????????????? " ??## ##????##"" ??? | | ???????????????????# ???## ###?????# ??? | | ???????????????????###### ???# #####?# #??? | | ????????????????????????# ????# ### #??? | | ????????????????????????# ????# # ##?# | | ????????????????????????##?????## ## ## | | ????????????????????????????????# ### # | | ????????????????????????????????# ## | | ??????????????????????????? ##?# # | | ??????????????????????????? ##### ### ## | | ??????????????????????????? ###### ####### | | ????????????????????#####??? ## ########## | | ???????????????????#######?? ########""""" | | ????????????????###### ##?? #####" !%] | | ???????????????###### ###? ####" | | ??????????######## #### ## #" " !% "# | | ??????????### ## ^^ #### ## " ## | | ??????????## ### ## # | | ????????????????? ^ ### ## * # | | ?????????????????????## ^@## ## ! "# | | ?????????????????????## R%## ## =! | | ?????????????????????### # " ! | | ?????????????????????### ## ! | | ??????????????????????## ## ## ### " | | ??????????????????????## ## ### #"" #" | | ?????????????????????? # #### "" ### | | ?????????????????????? ###### ###### | | ??????????????????????""" "###### ## ###### | | ???????????????????## " "??? ########?## # | | ???????????????????### " "???? ########?## ## | | ???????????????????##### ??????????????###### | | ????????????????????##### ??????????????###### | | ??????????????????????#### ""???????????????????? | | ???????????????????????### """???????????????????? | | ???????????????????????? " " ???????????????????? | | ?????????????????????????"<"?????????????????????? | | ???????????????????????? "??????????????????????? | | ????????????????????????###??????????????????????? | | ????????????????????????###??????????????????????? | | ?????????????????????????????????????????????????? | | ?????????????????????????????????????????????????? | | ?????????????????????????????????????????????????? | | ?????????????????????????????????????????????????? | | ?????????????????????????????????????????????????? | +----------------------------------------------------+ Best States ------------- Heat Dissipation 25 Energy Generation 15 Energy Capacity 250 Matter Stores 300 Matter Capacity 300 Sight Range 16 Terrain Scan Density 10 ECM Strength 1 Evasion (%) 40 Recoil Reduction 2 Item Schematics ----------------- None Robot Schematics ------------------ None Fabricated ------------ Nothing Repaired ---------- Nothing Studied --------- None Alien Tech Used ----------------- None Achievements -------------- None Challenges ------------ None Game ------ Seed LegPulsarFacilitator Manual? 0 Play Time 00:21:42 Cumulative 4.0 hours Start 2026.02.17 @ 02:09:26 End 2026.02.17 @ 02:30:41 Sessions 1 Manual Loads 0 Difficulty Rogue Special Mode None Game No. 10 Rogue 6 Adventurer 0 Explorer 4 Win Type - Total 0 Types 0/0/0/0/0/0/0/0/0/0 Lore% 3 Gallery% 10 Achievement% 9 Wizard Run 0 Options --------- Layout 1 ASCII 0 Keyboard 0 Movement Arrows Keybinds 0 Fullscreen 1 Font 24/Smallcaps Map View 50x35 Zoom Use 0% Tactical HUD 0 Map Filters NONE Filters NONE Steam 1 RUN: 998259db-482e-4f32-a9c5-992ef7a8b6a9